Cogmind - Beta 12 *** ADVENTURER MODE // 2023.10.31 @ 13:38:40 Player: drchaos820 Result: Self-destructed Performance ------------- Evolutions (1) 500 Regions Visited (3) 600 Robots Destroyed (38) 190 Value Destroyed (988) 988 Prototype IDs (0) 0 Alien Tech Used (0) 0 Bonus (11) 11 TOTAL SCORE: 2289 Bonus ------- High Alert Combat Kills 11 Cogmind --------- Core Integrity 339/400 Matter 289/300 Energy 250/250 System Corruption 0% Temperature Cool (0) Movement Walking (120) Location -9/Storage Parts ------- > --- POWER (1) -------- Ion Engine > --- PROPULSION (2) --- Aluminum Leg Aluminum Leg > --- UTILITY (4) ------ Small Storage Unit Visual Processing Unit Signal Interpreter Seismic Detector > --- WEAPON (2) ------- Spread Laser Heavy Assault Rifle > --- INVENTORY (8) ---- Ion Engine Heat Sink Transport Network Coupler EM Pulse Gun Small Laser Beam Rifle Particle Cannon Light Assault Rifle Peak State ------------ > --- POWER ------------ Light Nuclear Core > --- PROPULSION ------- Aluminum Leg Aluminum Leg > --- UTILITY ---------- Small Storage Unit Visual Processing Unit Signal Interpreter Improved Terrain Scanner > --- WEAPON ----------- Spread Laser Heavy Assault Rifle > --- INVENTORY -------- Light Ion Engine Light Ion Engine Aluminum Leg Heat Sink Transport Network Coupler Small Laser Beam Rifle Light Assault Rifle [Rating: 16] Favorites ----------- Power Light Nuclear Core Engine Ion Engine Power Core Light Nuclear Core Propulsion Aluminum Leg Leg Aluminum Leg Utility Small Storage Unit Device Improved Terrain Scanner Storage Small Storage Unit Processor Signal Interpreter Weapon Small Laser Energy Gun Small Laser Ballistic Gun Heavy Assault Rifle Build | -11 -10 -9 -9 ------- Run | Jun Mat Mat Sto Slots Evolved 2 | . . 2 . Power . | . . . . Propulsion . | . . . . Utility 2 | . . 2 . Weapon . | . . . . Parts Attached 26 | 7 6 13 . Power 6 | 1 2 3 . Engine 4 | 1 . 3 . Core 2 | . 2 . . Reactor . | . . . . Propulsion 7 | 2 2 3 . Treads . | . . . . Leg 7 | 2 2 3 . Wheel . | . . . . Hover . | . . . . Flight . | . . . . Utility 6 | 2 . 4 . Device 3 | 1 . 2 . Storage 1 | 1 . . . Processor 2 | . . 2 . Hackware . | . . . . Protection . | . . . . Artifact . | . . . . Weapon 7 | 2 2 3 . Energy Gun 4 | 2 . 2 . Energy Cannon . | . . . . Ballistic Gun 3 | . 2 1 . Ballistic Cannon . | . . . . Launcher . | . . . . Special Weapon . | . . . . Impact Weapon . | . . . . Slashing Weapon . | . . . . Piercing Weapon . | . . . . Special Melee Weapon . | . . . . Unidentified Prototypes . | . . . . Parts Lost 2 | . 1 1 . Power . | . . . . Propulsion 1 | . . 1 . Utility . | . . . . Weapon 1 | . 1 . . Highest Loss Streak 1 | . 1 1 . To Critical Strikes . | . . . . Average Slot Usage (%) 99 | . 100 99 100 Engine 4 | . 8 2 11 Core 7 | . 5 8 . Leg 24 | . 28 21 22 Device 15 | . 14 17 11 Storage 12 | . 14 11 11 Processor 9 | . . 15 22 Energy Gun 14 | . 20 11 11 Ballistic Gun 9 | . 7 11 11 Naked Turns . | . . . . Heaviest Build 18 | 14 14 18 17 Greatest Support 20 | 20 20 20 20 Greatest Overweight (x) 4 | 4 . 1 . Average Overweight (x) . | . . . . Largest Inventory Capacity 8 | 8 8 8 8 Average Capacity 7 | 7 8 8 8 Most Carried 8 | 2 8 8 8 Average Carried 6 | 1 5 7 8 Final Capacity 8 | 8 8 8 8 Final Carried 8 | 2 7 8 8 Class Distribution -------------------- 55% | Scavenger-Mutant 44% | Mutant Dominant Class ---------------- Mutant | -10/Materials Scavenger-Mutant | -9/Materials Scavenger-Mutant | -9/Storage Resources | -11 -10 -9 -9 ----------- Run | Jun Mat Mat Sto Matter Collected 622 | 270 113 239 . Remotely . | . . . . Salvage Created 1405 | 86 505 814 . Parts 84 | 7 23 54 . Haulers Intercepted 2 | . . 2 . Recyclers Shooed 1 | . . 1 . Parts Field Recycled . | . . . . Retrieved Matter . | . . . . Parts Self-Destructed . | . . . . Prevented . | . . . . Kills | -11 -10 -9 -9 ------- Run | Jun Mat Mat Sto Combat Hostiles Destroyed 25 | . 8 17 . Guns 25 | . 8 17 . Classes Destroyed 8 | 2 3 3 . Worker 4 | . 2 2 . Tunneler 1 | 1 . . . Hauler 2 | . . 2 . Recycler 3 | 1 1 1 . Watcher 3 | . 2 1 . Swarmer 3 | . . 3 . Grunt 15 | . 8 7 . Sentry 7 | . . 7 . Best Kill Streak 7 | 1 5 7 . Combat Bots Only 5 | . 2 5 . Max Kills in Single Turn 2 | 1 2 1 . Gunslinging 1 | . 1 . . Exploded . | . . . . Melee . | . . . . Uniques/NPCs Destroyed . | . . . . Combat | -11 -10 -9 -9 -------- Run | Jun Mat Mat Sto Damage Taken 888 | . 425 463 . Core 120 | . 59 61 . Absorbed by Shields . | . . . . Core Remaining (%) 88 | 100 76 . . Volleys Fired 92 | 3 42 47 . Largest 2 | 2 2 2 . Hottest 88 | 80 80 88 . Shots Fired 183 | 6 83 94 . Gun 183 | 6 83 94 . Cannon . | . . . . Launcher . | . . . . Special . | . . . . Kinetic 72 | . 25 47 . Thermal 92 | 3 42 47 . Explosive . | . . . . Electromagnetic 19 | 3 16 . . Robot Hit Streak 38 | 3 38 27 . Robot Miss Streak 4 | 1 2 4 . Penetration Max . | . . . . Secondary Targets 7 | . 4 3 . Max Gunslinging Chain 1 | . 1 1 . Shots Hit Robots 150 | 3 67 80 . Core Hits 105 | 3 24 78 . Critical Kills . | . . . . Critical Parts Destroyed . | . . . . Critical Strikes 1 | . . 1 . Burn 1 | . . 1 . Melee Attacks . | . . . . Impact . | . . . . Slashing . | . . . . Piercing . | . . . . Sneak Attacks . | . . . . Combat Hostiles . | . . . . Follow-up Attacks . | . . . . Damage Inflicted 2035 | 38 815 1182 . Guns 2035 | 38 815 1182 . Cannons . | . . . . Explosions . | . . . . Melee . | . . . . Ramming . | . . . . Kinetic 686 | . 237 449 . Thermal 1115 | 10 372 733 . Explosive . | . . . . Electromagnetic 234 | 28 206 . . Impact . | . . . . Slashing . | . . . . Piercing . | . . . . Highest Corruption . | . . . . Average Corruption . | . . . . Corruption Purged . | . . . . Corruption Blocked . | . . . . Overload Shots . | . . . . Overflow Damage . | . . . . Projectiles . | . . . . Explosions . | . . . . Melee . | . . . . Knockbacks . | . . . . Impact . | . . . . Kinetic . | . . . . Secondary . | . . . . Self-Inflicted Damage . | . . . . Shots . | . . . . Rammed . | . . . . Targets Rammed . | . . . . Kicked . | . . . . Crushed . | . . . . Highest Temperature 255 | 36 162 255 . Average Temperature 63 | 18 58 69 . Received Heat Transfer 543 | . 312 231 . Siege Activations . | . . . . Robots Corrupted . | . . . . Combat Hostiles . | . . . . Parts Fried 1 | . 1 . . Impact Corruptions . | . . . . Robots Melted . | . . . . Combat Hostiles . | . . . . Parts Melted . | . . . . Heat Transferred 1978 | 25 850 1103 . Parts Sabotaged . | . . . . Parts Stolen . | . . . . Parts Stripped . | . . . . Power Chain Reactions . | . . . . Missiles Intercepted . | . . . . Alert | -11 -10 -9 -9 ------- Run | Jun Mat Mat Sto Peak Influence 439 | 10 256 439 172 Initial 157 | . 5 50 157 Average 180 | 3 115 257 158 Maximum Alert Level 2 | . 1 2 . Low Security (%) 55 | 100 79 27 100 Level 1 40 | . 20 63 . Level 2 4 | . . 8 . Level 3 . | . . . . Level 4 . | . . . . Level 5 . | . . . . High Security . | . . . . Max Security . | . . . . Squads Dispatched 1 | . 1 . . Investigation 1 | . 1 . . Extermination . | . . . . Reinforcement . | . . . . Assault . | . . . . Garrison . | . . . . Intercept . | . . . . Searches Triggered . | . . . . Construction Impeded . | . . . . Haulers Reinforced . | . . . . Active Scanning Responses . | . . . . Cargo Convoy Interrupts . | . . . . Stealth | -11 -10 -9 -9 --------- Run | Jun Mat Mat Sto Distress Signals . | . . . . Communications Jammed . | . . . . Distress Signals . | . . . . Times Spotted 39 | . 18 20 1 Peak Tracking Total 6 | . 5 6 1 Tactical Retreats 1 | . . 1 . Traps | -11 -10 -9 -9 ------- Run | Jun Mat Mat Sto Traps Triggered . | . . . . Indirectly . | . . . . Trap Hack Attempts . | . . . . Triggered . | . . . . Disarmed . | . . . . Reprogrammed . | . . . . Reused . | . . . . Traps Extracted . | . . . . Installed . | . . . . Triggered . | . . . . Machines | -11 -10 -9 -9 ---------- Run | Jun Mat Mat Sto Machines Disabled . | . . . . Max in Single Turn . | . . . . Garrison Access 1 | . . . 1 Machines Repaired . | . . . . Machines Sabotaged . | . . . . Overloaded Fab Kills . | . . . . Hacking | -11 -10 -9 -9 --------- Run | Jun Mat Mat Sto Machines Accessed 10 | . 5 3 2 Terminals 7 | . 3 3 1 Fabricators . | . . . . Repair Stations . | . . . . Recycling Units 2 | . 2 . . Scanalyzers . | . . . . Garrison Access 1 | . . . 1 Total Hacks 16 | . 9 4 3 Successful 12 | . 6 4 2 Failed 4 | . 3 . 1 Catastrophic . | . . . . Database Lockouts . | . . . . Manual 13 | . 9 3 1 Terminals 10 | . 5 4 1 Fabricators . | . . . . Repair Stations . | . . . . Recycling Units 4 | . 4 . . Scanalyzers . | . . . . Garrison Access 2 | . . . 2 Terminal Hacks 3 | . 1 2 . Record 1 | . . 1 . Branch Access Points 1 | . . 1 . Zone Layout 1 | . 1 . . Fabricator Hacks . | . . . . Repair Station Hacks . | . . . . Recycling Unit Hacks . | . . . . Scanalyzer . | . . . . Garrison Access Hacks 1 | . . . 1 Seal Access 1 | . . . 1 Unauthorized Hacks 8 | . 5 2 1 Terminals 6 | . 3 2 1 Assimilate 1 | . . . 1 Botnet 5 | . 3 2 . Fabricators . | . . . . Repair Stations . | . . . . Recycling Units 2 | . 2 . . Mask 2 | . 2 . . Scanalyzers . | . . . . Garrison Access . | . . . . Data Cores Recovered . | . . . . Used . | . . . . Hacking Detections 4 | . 2 2 . Full Trace Events 1 | . 1 . . Feedback Events . | . . . . Feedback Blocked . | . . . . Robot Schematics Acquired . | . . . . Robots Built . | . . . . Authchips . | . . . . Time . | . . . . Total Robot Build Rating . | . . . . Part Schematics Acquired . | . . . . Parts Built . | . . . . Authchips . | . . . . Time . | . . . . Total Part Build Rating . | . . . . Parts Repaired . | . . . . Time . | . . . . Parts Recycled . | . . . . Recycled Matter . | . . . . Retrieved Matter . | . . . . Retrieved Components . | . . . . Parts Scanalyzed . | . . . . Part Schematics Acquired . | . . . . Parts Damaged . | . . . . Bothacking | -11 -10 -9 -9 ------------ Run | Jun Mat Mat Sto Used RIF Installer . | . . . . Robots Hacked . | . . . . Non-combat . | . . . . Combat . | . . . . Robot Hacks Applied . | . . . . Relay Couplers Released . | . . . . Fabnet Peak Effective % . | . . . . Robots Rewired . | . . . . Allies Hacked . | . . . . Hacks Repelled . | . . . . Allies | -11 -10 -9 -9 -------- Run | Jun Mat Mat Sto Total Allies . | . . . . Largest Group . | . . . . Highest-Rated Group . | . . . . Highest-Rated Ally . | . . . . Total Orders . | . . . . Ally Attacks . | . . . . Total Damage . | . . . . Kills . | . . . . Allies Corrupted . | . . . . Allies Melted . | . . . . Intel | -11 -10 -9 -9 ------- Run | Jun Mat Mat Sto Robot Analysis Total . | . . . . Derelict Logs Recovered . | . . . . Drone Launches . | . . . . Drone Recoveries . | . . . . Exploration | -11 -10 -9 -9 ------------- Run | Jun Mat Mat Sto Turns Passed 1382 | 89 559 696 38 Spaces Moved 760 | 51 328 350 31 Core 14 | 14 . . . Treads . | . . . . Legs 746 | 37 328 350 31 Wheels . | . . . . Hover . | . . . . Flight . | . . . . Fastest Speed 50 | 50 120 120 120 Average Speed 121 | 133 120 120 120 Slowest Speed 250 | 250 120 190 120 Overloaded Moves . | . . . . Propulsion Burnouts . | . . . . Robots Hopped . | . . . . Cave-ins Triggered . | . . . . Exploration Rate (%) 24 | 3 54 30 11 Regions Visited 3 Branch Regions 1 Pre-discovered Areas . | . . . . Known Exits Taken 1 | . . 1 . Unknown Exits Taken 2 | 1 1 . . Scrap Searched . | . . . . Spaces Dug . | . . . . Terrain Destroyed . | . . . . Melee . | . . . . Projectile . | . . . . AOE . | . . . . Terrain Rammed . | . . . . Walls Destroyed . | . . . . Machines Disabled . | . . . . Actions | -11 -10 -9 -9 --------- Run | Jun Mat Mat Sto Total 1038 | 62 412 533 31 Wait 140 | . 29 111 . Move 757 | 50 327 349 31 Hop . | . . . . Pick Up 11 | 2 5 4 . Fast Attach 10 | 7 . 3 . Attach 3 | . 1 2 . Detach . | . . . . Swap 13 | . 5 8 . Drop 12 | . 3 9 . Fire 92 | 3 42 47 . Melee . | . . . . Ram . | . . . . Kick . | . . . . Crush . | . . . . Escape Stasis . | . . . . Rewire . | . . . . Trap . | . . . . Miscellaneous . | . . . . Route ------- -11/Junkyard -10/Materials (discovered 3 exits: *Mat / [*Min x2]) -9/Materials (discovered 4 exits: *Min x2 / *Sto x2) -9/Storage History --------- Turn | Location | Event 7 | -11/Junkyard | Discovered new exit (range 16) 90 | -11/Junkyard | Entered Materials 95 | -10/Materials | Discovered new exit (range 15) 315 | -10/Materials | Build established: Mutant 327 | -10/Materials | Discovered new exit (range 9) 622 | -10/Materials | Discovered new exit (range 10) 649 | -10/Materials | Entered another Materials area 649 | -9/Materials | Evolved 2 slots: Utility x2 821 | -9/Materials | Identified exit to Mines 821 | -9/Materials | Identified exit to Storage 842 | -9/Materials | Build established: Scavenger-Mutant 1345 | -9/Materials | Entered Storage 1383 | -9/Storage | Self-destructed Last Messages --------------- 01295_ K-01 Serf destroyed. 01296_ Acquired 3 matter. 01299_ K-01 Serf collects debris. 01302_ Acquired Aluminum Leg. 01303_ K-01 Serf cleans the Hadron Collector. 01306_ K-01 Serf destroyed. 01309_ Acquired 16 matter. 01311_ Dropped Lgt. Ion Engine. 01315_ Acquired 19 matter. 01319_ Dropped Aluminum Leg. LOCATION=STORAGE GOAL=ESCAPE 01365_ Connecting with Terminal... >>Trojan(Assimilate) Trojan loaded successfully. Testing... System interface override in place. 01372_ Connecting with Garrison Access... >>Seal Access door sealed. Map ----- +----------------------------------------------------+ | | | | | | | | | | | | | ????????????????????????????????????? | | ????????????????????????????????????? | | ????????????????????????????????????? | | ????????????????????????????????????? | | ????????????????????????????????????? | | ????????????????????????????????????? | | ????????????????????????????????????? | | ????????????????????????????????????? | | ########????????????????????????????? | | # #####??#####?????????????????? | | # # #??# " #?????????????????? | | # # #??#"G"#?????????????????? | | # # ##+#" "###???????????????? | | # # # #???????????????? | | # # # """ #???????????????? | | # + # """ #???????????????? | | # # # """ #???????????????? | | # # # #???????????????? | | # # + #???????????????? | | # # #@"T" #???????????????? | | # # # """ #???????????????? | | # # # #???????????????? | | #####+## ##########???????????????? | | ??????? #????????????????????????? | | ?????? #????????????????????????? | | ????? +????????????????????????? | | ????# #????????????????????????? | | ????# #????????????????????????? | | ????# #????????????????????????? | | ????# #????????????????????????? | | ????#####+##????????????????????????? | | ????????????????????????????????????? | | ????????????????????????????????????? | | ????????????????????????????????????? | | ????????????????????????????????????? | | ????????????????????????????????????? | | ????????????????????????????????????? | | ????????????????????????????????????? | | ????????????????????????????????????? | | ????????????????????????????????????? | | ????????????????????????????????????? | | ????????????????????????????????????? | | ????????????????????????????????????? | | ????????????????????????????????????? | +----------------------------------------------------+ Best States ------------- Heat Dissipation 28 Energy Generation 14 Energy Capacity 250 Matter Stores 300 Matter Capacity 300 Sight Range 18 Terrain Scan Range 16 Terrain Scan Density 10 Resistance: KI 20 Resistance: TH 20 Resistance: EX 20 Resistance: EM 20 Resistance: I 20 Resistance: S 20 Resistance: P 20 Evasion (%) 55 Offensive Hacking 10 Item Schematics ----------------- None Robot Schematics ------------------ None Fabricated ------------ Nothing Alien Tech Used ----------------- None Achievements -------------- None Challenges ------------ None Game ------ Seed CoreSapperSabre Manual? 0 Play Time 00:13:08 Cumulative 17.0 hours Start 2023.04.13 @ 19:41:01 End 2023.10.31 @ 13:38:40 Sessions 3 Manual Loads 0 Difficulty Adventurer Special Mode None Game No. 27 Rogue 10 Adventurer 17 Explorer 0 Win Type - Total 1 Types 1/0/0/0/0/0/0/0/0 Lore% 42 Gallery% 35 Achievement% 37 Wizard Run 0 Options --------- ASCII 0 Keyboard 0 Movement Mouse Keybinds 0 Fullscreen 2 Font 18/Terminus Map View 76x50 Tactical HUD 1 Map Filters NONE Filters NONE Steam 1 RUN: 8a569047-3fc8-467c-b519-ebc4f088087c